bitfinex-derivatives/quotes_ETHF0:USTF0_20250321
["timestamp","ask_amount","ask_price","bid_price","bid_amount"]
[1742522703757,5.39151,1992.4,1992.3,42.93405]
[1742522704756,3.209,1992.4,1992.3,42.93405]
[1742522705251,4.01251,1992.4,1992.3,42.93405]
[1742522707354,4.01251,1992.4,1992.3,42.1305]
[1742522707553,4.01251,1992.4,1992.3,42.93405]
[1742522707749,4.01251,1992.4,1992.3,1.3305]
[1742522709155,0.80355,1992.3,1992.2,44.0078]
[1742522709455,3.40935,1992.3,1992.2,4.5721]
[1742522709853,0.80359,1992.2,1992.1,40.8]
[1742522710055,5.39179,1992.2,1992.1,42.1918]
[1742522711156,0.80363,1992.1,1992.0,3.2078]
[1742522711363,0.80375,1991.8,1991.7,0.6746]
[1742522711556,3.209,1991.8,1991.7,1.47839]
[1742522711761,3.209,1991.8,1991.7,42.27839]
[1742522712257,3.209,1991.8,1991.7,45.48619]
[1742522712759,3.209,1991.8,1991.7,46.87799]
[1742522720264,4.6016,1991.8,1991.7,46.87799]
[1742522722852,3.209,1991.8,1991.7,46.87799]
[1742522724168,4.5954,1991.8,1991.7,46.87799]
[1742522725469,5.39915,1991.8,1991.7,46.87799]
[1742522725667,5.39915,1991.8,1991.7,45.3996]
[1742522726161,5.39915,1991.8,1991.7,3.2078]
[1742522727568,5.39918,1991.8,1991.7,0.80379]
[1742522727764,5.39918,1991.8,1991.7,3.48449]
[1742522728269,5.39918,1991.8,1991.7,2.6807]
[1742522729270,5.39918,1991.8,1991.7,3.48449]
[1742522730061,4.5954,1991.8,1991.7,3.48449]
[1742522730474,5.39915,1991.8,1991.7,3.48449]
[1742522730771,4.5954,1991.8,1991.7,3.48449]
[1742522731069,0.8037,1992.0,1991.9,0.80371]
[1742522731270,5.38791,1992.0,1991.9,0.80371]
[1742522731964,0.80371,1991.9,1991.8,2.17612]
[1742522732165,2.17791,1991.9,1991.8,2.17612]
[1742522732566,5.38791,1991.9,1991.8,2.17612]
[1742522732763,3.21,1991.9,1991.8,2.17612]
[1742522733063,0.80366,1992.1,1992.0,0.80367]
[1742522733268,5.38786,1992.1,1992.0,4.01147]
[1742522733465,4.5832,1992.1,1992.0,4.01147]
[1742522733764,47.11522426,1992.3,1992.2,0.80359]
[1742522733969,50.43111426,1992.3,1992.2,0.80359]
[1742522734174,0.80359,1992.2,1992.1,1.5104]
[1742522734671,47.22210426,1992.3,1992.2,0.80359]
[1742522734862,50.43110426,1992.3,1992.2,0.80359]
[1742522735170,51.78290426,1992.3,1992.2,2.12989]
[1742522735769,5.37190426,1992.3,1992.2,2.12989]
[1742522738668,5.37190426,1992.3,1992.2,1.3263]
[1742522738870,6.06030426,1992.3,1992.2,1.3263]
[1742522739875,0.80359,1992.2,1992.1,0.80362]
[1742522740073,0.80363,1992.1,1992.0,4.01145]
[1742522740267,4.01263,1992.1,1992.0,5.42325]
[1742522740574,4.68313,1992.1,1992.0,4.6196]
[1742522740766,4.68313,1992.1,1992.0,5.42327]
[1742522741173,4.68313,1992.1,1992.0,4.6196]
[1742522741364,4.68313,1992.1,1992.0,5.42327]
[1742522742072,4.68313,1992.1,1992.0,4.6196]
[1742522742281,4.68313,1992.1,1992.0,3.2078]
[1742522742475,4.68313,1992.1,1992.0,4.01147]
[1742522742774,4.68313,1992.1,1992.0,3.2078]
[1742522743372,4.68313,1992.1,1992.0,4.01147]
[1742522743572,4.68313,1992.1,1992.0,3.2078]
[1742522747680,4.68313,1992.1,1992.0,4.01147]
[1742522747884,0.80363,1992.1,1992.0,5.37417]
[1742522748179,3.209,1992.1,1992.0,5.37417]
[1742522748368,4.01263,1992.1,1992.0,5.37417]
[1742522748572,4.6238,1992.1,1992.0,5.37417]
[1742522748771,5.42743,1992.1,1992.0,5.37417]
[1742522750379,5.42743,1992.1,1992.0,4.5705]
[1742522750879,5.42743,1992.1,1992.0,3.2078]
[1742522751279,5.42743,1992.1,1992.0,4.4928]
[1742522751474,5.42743,1992.1,1992.0,5.29647]
[1742522751679,5.42743,1992.1,1992.0,4.4928]
[1742522751980,5.42743,1992.1,1992.0,5.29647]
[1742522752986,5.42743,1992.1,1992.0,4.4928]
[1742522753584,5.42743,1992.1,1992.0,3.2078]
[1742522755581,5.42743,1992.1,1991.8,4.597]
[1742522755582,0.80371,1991.9,1991.8,4.597]
[1742522755783,4.01271,1991.9,1991.8,5.40075]
[1742522755980,4.01271,1991.9,1991.8,4.597]
[1742522756279,5.40461,1991.9,1991.8,4.597]
[1742522756680,5.40461,1991.9,1991.8,5.40075]
[1742522758474,5.40461,1991.9,1991.8,4.597]
[1742522759186,5.40461,1991.9,1991.8,5.40075]
[1742522760390,0.8037,1992.0,1991.9,0.80371]
[1742522760586,4.0127,1992.0,1991.9,2.13391]
[1742522761281,4.0127,1992.0,1991.9,1.3302]
[1742522762679,5.3384,1992.0,1991.9,1.3302]
[1742522763578,0.80371,1991.9,1991.8,3.2078]
[1742522763783,2.12331,1991.9,1991.8,4.5118]
[1742522764385,2.12331,1991.9,1991.8,3.2078]
[1742522766689,2.12331,1991.9,1991.8,4.5016]
[1742522766889,2.12331,1991.9,1991.8,3.2078]
[1742522769890,2.12331,1991.9,1991.8,4.5695]
[1742522776791,2.12331,1991.9,1991.8,5.37325]
[1742522776993,5.33231,1991.9,1991.8,5.37325]
[1742522778096,0.80371,1992.0,1991.9,0.80369]
[1742522778298,4.01271,1992.0,1991.9,2.88059]
[1742522779886,1.328,1992.1,1991.9,2.0769]
[1742522780087,0.80363,1992.2,1992.1,0.80361]
[1742522780284,5.30263,1992.2,1992.1,2.13281]
[1742522780488,5.30263,1992.2,1992.1,1.3292]
[1742522780784,2.09363,1992.2,1992.1,2.13283]
[1742522780987,5.30263,1992.2,1992.1,2.13283]
[1742522781887,4.01891426,1992.3,1992.2,0.80359]
[1742522782084,8.51791426,1992.3,1992.2,1.3292]
[1742522782890,2.10111426,1992.3,1992.2,1.3292]
[1742522783090,5.31011426,1992.3,1992.2,1.3292]
[1742522785000,6.01061426,1992.3,1992.2,1.3292]
[1742522785296,5.31011426,1992.3,1992.2,1.3292]
[1742522785498,5.31011426,1992.3,1992.2,2.13279]
[1742522786202,5.31011426,1992.3,1992.2,1.3292]
[1742522787793,4.02011426,1992.3,1992.2,2.13279]
[1742522789402,5.37041426,1992.3,1992.2,2.13279]
[1742522792198,3.21652426,1992.3,1992.2,2.13279]
[1742522794406,4.02007426,1992.3,1992.2,2.13279]
[1742522795807,3.21652426,1992.3,1992.2,2.13279]
[1742522796908,0.00752426,1992.3,1992.2,5.34059]
[1742522800705,1.28462426,1992.3,1992.2,5.34059]
[1742522802110,0.00752426,1992.3,1992.2,5.34059]
[1742522804413,2.11477426,1992.3,1992.2,3.2078]
[1742522804614,3.44717426,1992.3,1992.2,3.2078]
[1742522805304,3.44717426,1992.3,1992.2,4.01139]
[1742522805510,3.44717426,1992.3,1992.2,5.35179]
[1742522809521,3.44717426,1992.3,1992.2,2.14399]
[1742522810618,0.80361,1992.2,1992.1,0.8036]
[1742522810820,5.31761,1992.2,1992.1,2.1245]
[1742522816712,4.514,1992.2,1992.1,2.1245]
[1742522818223,5.31759,1992.2,1992.1,2.1245]
[1742522820321,4.514,1992.2,1992.1,2.1245]
[1742522820619,5.31759,1992.2,1992.1,2.1245]
[1742522821721,4.514,1992.2,1992.1,2.1245]
[1742522830131,3.208,1992.2,1992.1,2.1245]
[1742522830324,0.00752426,1992.3,1992.2,0.80359]
[1742522830523,3.21552426,1992.3,1992.2,1.44189]
[1742522830725,3.21552426,1992.3,1992.2,4.64969]
[1742522831323,4.57462426,1992.3,1992.2,4.64969]
[1742522834130,0.00752426,1992.3,1992.2,4.64969]
[1742522834632,3.208,1992.6,1992.5,0.80347]
[1742522834833,1.381,1992.7,1992.6,0.80343]
[1742522835029,4.589,1992.7,1992.6,0.80343]
[1742522835334,4.589,1992.7,1992.6,4.01123]
[1742522835335,3.208,1992.7,1992.6,4.01123]
[1742522835532,3.208,1992.7,1992.6,6.04223]
[1742522835835,3.208,1992.7,1992.6,46.84223]
[1742522836826,0.00752426,1992.8,1992.7,0.80339]
[1742522837034,0.00752426,1992.8,1992.7,2.13439]
[1742522837422,1.38852426,1992.8,1992.7,2.13439]
[1742522841134,2.19187426,1992.8,1992.7,2.13439]
[1742522841437,1.38852426,1992.8,1992.7,2.13439]
[1742522845443,0.80367,1992.0,1991.9,4.6944]
[1742522845644,4.01067,1992.0,1991.9,4.0115]
[1742522845947,4.01067,1992.0,1991.9,44.8115]
[1742522846443,5.30847,1992.0,1991.9,44.8115]
[1742522846837,5.30847,1992.0,1991.9,44.0078]
[1742522847043,0.80375,1991.8,1991.7,0.80378]
[1742522847352,4.01075,1991.8,1991.7,0.80378]
[1742522847545,4.01075,1991.8,1991.7,41.60378]
[1742522851742,3.207,1991.8,1991.7,41.60378]
[1742522852339,3.207,1991.8,1991.7,42.88678]
[1742522853248,1.2978,1992.0,1991.9,0.80371]
[1742522853440,4.5048,1992.0,1991.9,0.80371]
[1742522853838,4.5048,1992.0,1991.9,43.60041]
[1742522856036,1.2978,1992.0,1991.9,43.60041]
[1742522856241,0.8036,1992.2,1991.9,42.7967]
[1742522856444,4.6113,1992.1,1992.0,3.2078]
[1742522856643,4.6113,1992.1,1992.0,5.28927]
[1742522857253,4.6113,1992.1,1992.0,46.08927]
[1742522859149,5.41493,1992.1,1992.0,46.08927]
[1742522859449,4.6113,1992.1,1992.0,46.08927]
[1742522861847,1.47514,1992.4,1992.1,2.00905]
[1742522862053,5.42215,1992.3,1992.2,0.80359]
[1742522862254,5.42215,1992.3,1992.2,2.14749]
[1742522862651,5.42215,1992.3,1992.2,42.94749]
[1742522864349,4.6186,1992.3,1992.2,42.94749]
[1742522865058,46.406,1992.6,1992.3,2.00883]
[1742522865256,4.5287,1992.5,1992.4,5.38221]
[1742522866160,1.3217,1992.5,1992.4,5.38221]
[1742522866357,3.207,1992.5,1992.4,5.38221]
[1742522866554,0.80333,1992.9,1992.7,0.80339]
[1742522866753,3.21452426,1992.8,1992.7,4.01119]
[1742522868263,4.55682426,1992.8,1992.7,4.01119]
[1742522869967,5.36017426,1992.8,1992.7,4.01119]
[1742522870164,4.55682426,1992.8,1992.7,4.01119]
[1742522870366,5.36017426,1992.8,1992.7,4.01119]
[1742522870660,4.55682426,1992.8,1992.7,4.01119]
[1742522871065,0.80344,1992.6,1992.5,0.80344]
[1742522871366,4.01044,1992.6,1992.5,0.80344]
[1742522871973,5.39404,1992.6,1992.5,0.80344]
[1742522872661,4.5906,1992.6,1992.5,0.80344]
[1742522873271,3.9101,1992.6,1992.5,0.80344]
[1742522873566,3.207,1992.6,1992.5,0.80344]
[1742522874264,4.01043,1992.6,1992.5,0.80344]
[1742522874465,4.6237,1992.6,1992.5,0.80344]
[1742522874866,5.42713,1992.6,1992.5,0.80344]
[1742522875169,4.6237,1992.6,1992.5,0.80344]
[1742522875564,3.207,1992.6,1992.5,4.01124]
[1742522878265,4.51832426,1992.8,1992.7,0.80339]
[1742522878865,4.51832426,1992.8,1992.7,2.80409]
[1742522879574,1.31132426,1992.8,1992.7,2.80409]
[1742522880362,1.31132426,1992.8,1992.7,6.01189]
[1742522880673,1.31132426,1992.8,1992.7,2.80409]
[1742522881571,1.31132426,1992.8,1992.7,6.01189]
[1742522882169,1.31132426,1992.8,1992.7,2.80409]
[1742522882574,1.31132426,1992.8,1992.7,6.01189]
[1742522883771,1.31132426,1992.8,1992.7,2.80409]
[1742522885080,1.31132426,1992.8,1992.6,1.444]
[1742522885383,1.31132426,1992.8,1992.6,0.8034]
[1742522885384,3.8467,1992.7,1992.6,0.8034]
[1742522886272,4.65009,1992.7,1992.6,0.8034]
[1742522891177,4.65009,1992.7,1992.4,0.6914]
[1742522891178,3.8467,1992.7,1992.4,0.6914]
[1742522891378,0.80347,1992.5,1992.4,2.11337]
[1742522891581,4.00947,1992.5,1992.4,2.11337]
[1742522891774,5.34457,1992.5,1992.4,2.11337]
[1742522892171,0.80351,1992.4,1992.3,4.01133]
[1742522892385,2.83981,1992.4,1992.3,4.01135]
[1742522892873,2.83981,1992.4,1992.3,5.40545]
[1742522894283,2.0363,1992.4,1992.3,5.40545]
[1742522894585,1.3351,1992.4,1992.3,5.40545]
[1742522894880,3.206,1992.5,1992.4,0.80351]
[1742522895180,1.3032,1992.7,1992.6,0.80343]
[1742522895376,4.5092,1992.7,1992.6,0.80343]
[1742522895980,4.5092,1992.7,1992.6,2.15193]
[1742522898872,3.206,1992.7,1992.6,2.15193]
[1742522899077,5.36118426,1992.8,1992.7,0.80339]
[1742522899279,5.36118426,1992.8,1992.7,2.79489]
[1742522899889,4.55782426,1992.8,1992.7,2.79489]
[1742522900786,5.36117426,1992.8,1992.7,2.79489]
[1742522902085,4.55782426,1992.8,1992.7,2.79489]
[1742522902386,4.55782426,1992.8,1992.7,6.00269]
[1742522903088,3.21352426,1992.8,1992.7,6.00269]
[1742522904985,0.00752426,1992.8,1992.7,6.00269]
[1742522912101,1.35652426,1992.8,1992.7,6.00269]
[1742522917097,2.15987426,1992.8,1992.7,6.00269]
[1742522917296,2.15987426,1992.8,1992.7,4.01119]
[1742522917607,6.03137426,1992.8,1992.7,4.01119]
[1742522919004,5.22802426,1992.8,1992.7,4.01119]
[1742522919803,6.03137426,1992.8,1992.7,4.01119]
[1742522920399,5.22802426,1992.8,1992.7,4.01119]
[1742522920905,6.03137426,1992.8,1992.7,4.01119]
[1742522923805,6.03137426,1992.8,1992.7,0.80339]
[1742522926711,5.22802426,1992.8,1992.7,0.80339]
[1742522927310,6.03137426,1992.8,1992.7,0.80339]
[1742522929303,5.22802426,1992.8,1992.7,0.80339]
[1742522931015,6.03137426,1992.8,1992.7,0.80339]
[1742522931313,5.22802426,1992.8,1992.7,0.80339]
[1742522931814,6.03137426,1992.8,1992.7,0.80339]
[1742522932216,5.22802426,1992.8,1992.7,0.80339]
[1742522932417,6.03137426,1992.8,1992.7,0.80339]
[1742522932811,5.22802426,1992.8,1992.7,0.80339]
[1742522933518,5.22802426,1992.8,1992.7,2.18459]
[1742522934316,6.03137426,1992.8,1992.7,2.18459]
[1742522936706,5.22802426,1992.8,1992.7,2.18459]
[1742522939615,4.56252426,1992.8,1992.7,2.18459]
[1742522940011,1.35652426,1992.8,1992.7,2.18459]
[1742522940219,0.00752426,1992.8,1992.7,2.18459]
[1742522940419,1.40872426,1992.8,1992.7,2.18459]
[1742522943119,0.00752426,1992.8,1992.7,2.18459]
[1742522944216,1.41812426,1992.8,1992.7,2.18459]
[1742522946015,1.41812426,1992.8,1992.7,5.39239]
[1742522949211,0.00752426,1992.8,1992.7,5.39239]
[1742522949412,3.2078,1993.6,1993.4,0.80307]
[1742522949716,2.15025,1993.3,1993.2,1.47439]
[1742522950115,1.3471,1993.3,1993.2,41.60319]
[1742522951820,4.5531,1993.3,1993.2,41.60319]
[1742522957222,0.00752426,1993.4,1993.3,0.80315]
[1742522957427,4.53092426,1993.4,1993.3,0.80315]
[1742522957821,1.32592426,1993.4,1993.3,4.01095]
[1742522959628,46.4,1993.8,1993.7,0.80299]
[1742522959932,2.16611,1993.9,1993.8,0.80295]
[1742522960122,4.5682,1993.9,1993.8,0.80295]
[1742522960322,3.205,1993.9,1993.8,0.80295]
[1742522960620,3.2078,1994.0,1993.9,0.80291]
[1742522960814,3.2078,1994.0,1993.7,42.80744]
[1742522960815,1.3632,1994.1,1994.0,0.80287]
[1742522961019,3.87482426,1994.1,1994.0,0.80287]
[1742522961421,4.53572426,1994.1,1994.0,0.80287]
[1742522961622,5.33855426,1994.1,1994.0,0.80287]
[1742522961823,4.53572426,1994.1,1994.0,0.80287]
[1742522962129,5.33855426,1994.1,1994.0,0.80287]
[1742522962327,0.80287,1994.0,1993.9,4.01068]
[1742522962523,1.3232,1994.0,1993.9,4.01068]
[1742522965929,1.3232,1994.0,1993.9,0.80288]
[1742522965930,2.12607,1994.0,1993.9,0.80288]
[1742522966131,1.3232,1994.0,1993.9,0.80288]
[1742522967439,1.3232,1994.0,1993.9,2.14068]
[1742522968525,1.3232,1994.0,1993.7,3.2078]
[1742522968725,0.80295,1993.8,1993.7,5.34857]
[1742522968924,0.80295,1993.8,1993.7,2.14077]
[1742522969131,2.08235,1993.8,1993.7,2.14077]
[1742522975938,2.08235,1993.8,1993.7,2.82257]
[1742522976135,1.2794,1993.8,1993.7,2.82257]
[1742522976440,1.2794,1993.8,1993.7,6.03037]
[1742522976640,2.08235,1993.8,1993.7,6.03037]
[1742522977443,1.2794,1993.8,1993.7,6.03037]
[1742522978340,2.08235,1993.8,1993.7,6.03037]
[1742522981441,2.08235,1993.8,1993.7,5.34857]
[1742522982542,1.2794,1993.8,1993.7,5.34857]
[1742522982838,1.2794,1993.8,1993.7,6.01677]
[1742522983447,1.2794,1993.8,1993.7,46.81677]
[1742522984443,2.08235,1993.8,1993.7,46.81677]
[1742522985244,1.2794,1993.8,1993.7,46.81677]
[1742522985651,2.08235,1993.8,1993.7,46.81677]
[1742522985843,1.2794,1993.8,1993.7,46.81677]
[1742522986953,2.08235,1993.8,1993.7,46.81677]
[1742522987143,5.28635,1993.8,1993.7,46.81677]
[1742522988351,4.4834,1993.8,1993.7,46.81677]
[1742522988844,5.28635,1993.8,1993.7,46.81677]
[1742522991052,5.28635,1993.8,1993.7,46.14857]
[1742522991444,4.4834,1993.8,1993.7,46.14857]
[1742522991753,4.4834,1993.8,1993.7,46.14859]
[1742522991754,3.204,1993.8,1993.7,46.14859]
[1742522992346,4.5352,1993.8,1993.7,46.14859]
[1742522993151,5.33815,1993.8,1993.7,46.14859]
[1742522993557,4.5352,1993.8,1993.7,46.14859]
[1742522994757,5.33815,1993.8,1993.7,46.14859]
[1742522995360,5.97615,1993.8,1993.7,46.14859]
[1742522996755,5.97615,1993.8,1993.7,45.3456]
[1742522996957,0.80303,1993.6,1993.5,4.01087]
[1742522997153,4.00703,1993.6,1993.5,3.2078]
[1742522997357,0.80307,1993.5,1993.4,2.16478]
[1742522997564,3.48137,1993.5,1993.4,2.16478]
[1742522997760,3.48137,1993.5,1993.4,1.3617]
[1742522997969,3.48137,1993.5,1993.4,40.8]
[1742522998876,3.48137,1993.5,1993.2,2.16486]
[1742522998877,0.80315,1993.3,1993.2,2.16486]
[1742522999059,4.00715,1993.3,1993.2,2.16486]
[1742522999364,4.00715,1993.3,1993.2,42.96486]
[1742523002771,4.00715,1993.3,1993.2,42.1617]
[1742523003072,4.00715,1993.3,1993.2,40.8]
[1742523003371,4.00715,1993.3,1993.2,42.1377]
[1742523003962,4.00715,1993.3,1993.2,40.8]
[1742523004464,0.80319,1993.2,1993.1,0.00752426]
[1742523004771,2.82759,1993.2,1993.1,0.00752426]
[1742523005270,3.48039,1993.2,1993.1,0.00752426]
[1742523006673,5.98039,1993.2,1993.1,0.00752426]
[1742523007268,9.18819,1993.2,1993.1,0.00752426]
[1742523007466,0.80331,1992.9,1992.8,3.2078]
[1742523007666,4.00731,1992.9,1992.8,3.2078]
[1742523007868,0.80335,1992.8,1992.7,42.1266]
[1742523008067,2.84365,1992.8,1992.7,40.8]
[1742523008570,2.17395,1992.8,1992.7,40.8]
[1742523008778,2.17395,1992.8,1992.7,1.4109]
[1742523010581,1.3706,1992.8,1992.7,1.4109]
[1742523010779,0.81086426,1992.9,1992.7,1.4109]
[1742523011072,4.00735,1992.8,1992.7,2.21429]
[1742523011280,4.00735,1992.8,1992.7,1.4109]
[1742523011470,4.00735,1992.8,1992.7,2.21429]
[1742523011877,4.00735,1992.8,1992.7,1.4109]
[1742523012075,5.40775,1992.8,1992.7,1.4109]
[1742523012583,0.80339,1992.7,1992.6,44.01532426]
[1742523012779,2.20379,1992.7,1992.6,44.01532426]
[1742523014168,2.20379,1992.7,1992.6,45.40412426]
[1742523015082,2.20379,1992.7,1992.6,46.20755426]
[1742523015378,2.20379,1992.7,1992.6,45.40412426]
[1742523017579,2.86779,1992.7,1992.6,45.40412426]
[1742523019376,2.86779,1992.7,1992.6,46.20755426]
[1742523019678,2.86779,1992.7,1992.6,42.19632426]
[1742523020175,2.86779,1992.7,1992.6,1.39632426]
[1742523022585,2.86779,1992.7,1992.6,2.19975426]
[1742523023393,2.86779,1992.7,1992.6,1.39632426]
[1742523026083,2.86779,1992.7,1992.6,0.00752426]
[1742523043599,2.95543183,1992.7,1992.6,0.00752426]
[1742523045408,2.95543311,1992.7,1992.6,0.00752426]
[1742523047307,5.45543311,1992.7,1992.6,0.00752426]
[1742523047704,5.45543308,1992.7,1992.6,0.00752426]
[1742523047906,5.45543308,1992.7,1992.0,3.2078]
[1742523047907,4.65204308,1992.7,1992.0,3.2078]
[1742523048100,0.80359,1992.2,1992.1,2.7399]
[1742523048407,4.00859,1992.2,1992.1,1.37]
[1742523049108,5.40909,1992.2,1992.1,1.37]
[1742523052908,8.61689,1992.2,1992.1,1.37]
[1742523053608,0.80375,1991.8,1991.7,3.2078]
[1742523053798,4.00875,1991.8,1991.7,3.2078]
[1742523059113,0.80388,1991.5,1991.4,4.5504]
[1742523059314,0.80388,1991.5,1991.4,5.35432]
[1742523059315,4.00988,1991.5,1991.4,5.35432]
[1742523061008,3.206,1991.5,1991.4,5.35432]
[1742523061222,4.00988,1991.5,1991.4,5.35432]
[1742523061411,3.206,1991.5,1991.4,5.35432]
[1742523062214,0.00752426,1991.6,1991.5,0.80388]
[1742523062410,3.206,1991.8,1991.7,0.80379]
[1742523062613,2.1441,1991.8,1991.7,4.01159]
[1742523062809,4.00975,1991.9,1991.8,0.80375]
[1742523063216,0.80375,1991.9,1991.8,0.80375]
[1742523063512,48.42301,1992.2,1991.9,0.80367]
[1742523063513,0.81122426,1992.0,1991.9,0.80367]
[1742523063707,4.01722426,1992.0,1991.9,0.80367]
[1742523064107,0.80375,1991.9,1991.8,0.80373]
[1742523066415,0.80375,1991.9,1991.8,3.52743]
[1742523067109,4.00975,1991.9,1991.8,3.52743]
[1742523074316,5.36405,1991.9,1991.8,3.52743]
[1742523076117,5.36405,1991.9,1991.8,1.3814]
[1742523076629,6.05635,1991.9,1991.8,1.3814]
[1742523077319,6.05635,1991.9,1991.8,2.18515]
[1742523078022,6.05635,1991.9,1991.8,1.3814]
[1742523079727,0.80375,1991.8,1991.7,3.21532426]
[1742523079918,2.08955,1991.8,1991.7,4.62622426]
[1742523080123,2.08955,1991.8,1991.7,5.43001426]
[1742523080323,4.00975,1991.9,1991.8,0.80375]
[1742523080524,4.00975,1991.9,1991.8,3.58695]
[1742523080927,5.29555,1991.9,1991.8,3.58695]
[1742523082729,5.29551,1991.9,1991.8,3.58695]
[1742523082922,4.4918,1991.9,1991.8,3.58695]
[1742523084025,5.29551,1991.9,1991.8,1.4109]
[1742523084530,0.80375,1991.8,1991.7,3.21532426]
[1742523084729,2.81975,1991.8,1991.7,3.21532426]
[1742523084926,2.81975,1991.8,1991.7,4.62812426]
[1742523086328,2.81975,1991.8,1991.7,0.00752426]
[1742523086631,0.80388,1991.5,1991.4,3.2078]
[1742523086932,4.00988,1991.5,1991.4,3.2078]
[1742523087534,4.68108,1991.5,1991.4,3.2078]
[1742523089231,0.80396,1991.3,1991.2,40.8]
[1742523089531,0.804,1991.2,1991.1,3.2078]
[1742523089734,2.8164,1991.2,1991.1,4.4889]
[1742523089931,3.5102,1991.2,1991.1,45.2889]
[1742523091225,3.5102,1991.2,1991.1,44.0078]
[1742523091535,3.5102,1991.2,1991.1,3.2078]
[1742523091729,3.5102,1991.2,1990.8,1.3167]
[1742523091935,0.80412,1990.9,1990.8,2.12086]
[1742523092234,4.01012,1990.9,1990.8,1.3167]
[1742523092427,4.01012,1990.9,1990.8,42.1167]
[1742523092825,4.66552,1990.9,1990.8,42.1167]
[1742523093235,4.66552,1990.9,1990.8,42.92086]
[1742523093634,4.66552,1990.9,1990.8,42.1167]
[1742523096035,4.66552,1990.9,1990.8,42.92086]
[1742523096430,4.66552,1990.9,1990.8,42.1167]
[1742523097636,4.66552,1990.9,1990.8,42.92086]
[1742523098339,3.206,1990.9,1990.8,42.92086]
[1742523099040,3.206,1990.9,1990.8,46.12866]
[1742523099243,0.80406,1991.1,1991.0,0.80408]
[1742523099541,4.01006,1991.1,1991.0,0.80408]
[1742523099937,5.32396,1991.1,1991.0,1.46218]
[1742523100138,5.32396,1991.1,1991.0,0.6581]
[1742523100843,5.32396,1991.1,1991.0,1.46218]
[1742523101044,5.32396,1991.1,1991.0,2.85208]
[1742523101238,3.2078,1991.4,1991.0,7.26599]
[1742523101539,5.32491,1991.3,1991.2,0.80398]
[1742523101745,5.32491,1991.3,1991.2,2.19388]
[1742523101939,5.32491,1991.3,1991.2,42.99388]
[1742523102137,5.32491,1991.3,1991.2,42.1899]
[1742523102545,5.32491,1991.3,1991.2,42.9939]
[1742523102844,5.32491,1991.3,1991.2,42.1899]
[1742523103245,5.32491,1991.3,1991.2,42.9939]
[1742523104139,5.32491,1991.3,1991.2,42.1899]
[1742523104545,5.32491,1991.3,1991.2,42.9939]
[1742523106148,5.32491,1991.3,1991.2,42.1899]
[1742523106940,0.80404,1991.1,1991.0,1.46215]
[1742523107143,4.01104,1991.1,1990.9,2.19909]
[1742523107349,2.12108,1991.0,1990.9,41.60409]
[1742523110638,1.317,1991.0,1990.9,41.60409]
[1742523111041,2.12108,1991.0,1990.9,41.60409]
[1742523112050,4.67686,1991.1,1991.0,0.80408]
[1742523112345,0.80397,1991.3,1991.2,0.80396]
[1742523112551,4.00997,1991.3,1991.2,0.80396]
[1742523112949,4.00997,1991.3,1991.2,1.47826]
[1742523113249,3.206,1991.3,1991.2,1.47826]
[1742523114249,5.36616,1991.3,1991.2,1.47826]
[1742523114644,4.00996,1991.3,1991.2,1.47826]
[1742523115554,5.34496,1991.3,1991.2,1.47826]
[1742523116750,5.34496,1991.3,1991.2,0.80396]
[1742523117049,0.804,1991.2,1991.1,1.50351]
[1742523117243,2.139,1991.2,1991.1,1.50351]
[1742523118753,2.8422,1991.2,1991.1,1.50351]
[1742523119446,0.80404,1991.1,1991.0,4.01185]
[1742523119754,2.20754,1991.1,1991.0,4.01185]
[1742523120556,1.4035,1991.1,1991.0,4.01185]
[1742523121451,0.80404,1991.1,1991.0,4.01185]
[1742523122158,2.17324,1991.1,1991.0,4.01185]
[1742523122956,1.3692,1991.1,1991.0,4.01185]
[1742523123157,2.17324,1991.1,1991.0,4.01185]
[1742523124261,1.3692,1991.1,1991.0,4.01185]
[1742523125057,3.206,1991.3,1991.2,0.804]
[1742523125260,5.37316,1991.3,1991.2,0.804]
[1742523125759,5.37316,1991.3,1991.2,2.1787]
[1742523126362,1.3632,1991.3,1991.2,2.1787]
[1742523126659,1.49402,1991.4,1991.3,0.80396]
[1742523126853,6.06322,1991.4,1991.3,2.17866]
[1742523129560,0.80396,1991.3,1991.2,0.80399]
[1742523129860,2.14016,1991.3,1991.2,0.80399]
[1742523130063,0.804,1991.2,1991.1,2.17491]
[1742523130358,2.8064,1991.2,1991.1,2.17491]
[1742523130556,6.0124,1991.2,1991.1,2.17491]
[1742523132059,6.0124,1991.2,1991.1,1.3709]
[1742523132357,0.80404,1991.1,1991.0,3.2078]
[1742523132558,2.13814,1991.1,1991.0,3.2078]
[1742523133764,3.2078,1991.4,1991.0,3.2078]
[1742523134067,2.15914,1991.9,1991.8,0.80375]
[1742523134362,4.5734,1991.9,1991.8,0.80375]
[1742523134872,1.3554,1991.9,1991.8,2.17575]
[1742523135058,0.80371,1991.9,1991.8,1.372]
[1742523135258,0.80384,1991.6,1991.4,0.6493]
[1742523135463,4.02784,1991.6,1991.5,2.17588]
[1742523136466,4.02784,1991.6,1991.5,1.372]
[1742523136768,4.02784,1991.6,1991.5,2.17588]
[1742523138972,4.02784,1991.6,1991.5,1.372]
[1742523139266,5.21716,1991.9,1991.8,0.80375]
[1742523139267,3.2078,1991.9,1991.8,0.80375]
[1742523139569,1.45962,1992.2,1991.9,0.80371]
[1742523139869,3.23352426,1992.0,1991.9,0.80371]
[1742523140060,3.23352426,1992.0,1991.9,2.14061]